bitfinex/quotes_ETHUSD_20250725
["timestamp","ask_amount","ask_price","bid_price","bid_amount"]
[1753417151563,3.72055408,3597.6,3596.9,7.28616135]
[1753417151765,0.9409,3597.6,3596.9,7.28616135]
[1753417152067,0.9409,3597.6,3596.8,7.229]
[1753417152242,2.77991078,3597.3,3597.0,4.506]
[1753417152445,3.72084592,3597.2,3597.0,4.506]
[1753417152656,3.72084592,3597.2,3596.4,2.78054642]
[1753417152657,0.7716,3596.8,3595.8,0.7965]
[1753417152858,2.78071297,3596.2,3595.6,0.001]
[1753417153170,4.10231297,3596.2,3595.6,0.001]
[1753417153466,4.12736763,3596.0,3595.6,0.001]
[1753417153664,7.12759964,3595.7,3595.6,0.001]
[1753417154188,2.78164116,3595.0,3594.9,0.001]
[1753417154351,6.33164116,3595.0,3594.9,0.001]
[1753417154668,7.27254116,3595.0,3594.9,0.001]
[1753417156463,8.06154116,3595.0,3594.9,0.001]
[1753417156663,9.14584392,3595.0,3594.9,0.001]
[1753417159575,13.69340276,3595.0,3594.9,0.001]
[1753417159730,16.47504392,3595.0,3594.9,0.001]
[1753417159936,8.1182,3595.0,3594.9,0.001]
[1753417160146,7.19,3595.0,3594.9,0.001]
[1753417161070,7.19,3595.0,3594.9,2.78271854]
[1753417161243,1.63489806,3595.9,3594.9,0.001]
[1753417161437,0.1392,3595.4,3594.9,0.001]
[1753417161638,0.9365,3595.8,3594.9,0.001]
[1753417161871,0.1392,3595.0,3594.9,0.001]
[1753417162774,2.92084116,3595.0,3594.9,0.001]
[1753417162974,0.60814412,3595.0,3594.9,0.001]
[1753417163358,2.92084116,3595.0,3594.9,0.001]
[1753417163577,0.1392,3595.0,3594.9,0.001]
[1753417164875,4.40734116,3595.0,3594.9,0.001]
[1753417168784,7.13191854,3594.9,3594.8,0.001]
[1753417169090,17.9575103,3594.9,3594.8,1e-08]
[1753417169880,22.4655103,3594.9,3594.8,1e-08]
[1753417170087,17.9575103,3594.9,3594.8,1e-08]
[1753417170565,14.62579176,3594.9,3594.8,1e-08]
[1753417170760,0.1392,3595.0,3594.8,1e-08]
[1753417171289,4.26821854,3594.9,3594.8,1e-08]
[1753417171493,3.3319507,3594.6,3594.5,0.001]
[1753417171703,3.3319507,3594.6,3593.4,0.001]
[1753417171704,3.33249255,3593.9,3593.4,0.001]
[1753417171987,7.08959255,3593.9,3593.4,0.001]
[1753417172191,8.16529255,3593.9,3593.4,0.001]
[1753417172583,1.9413,3593.9,3593.4,0.001]
[1753417172767,0.6892,3593.9,3593.4,2.78382686]
[1753417172953,3.47169255,3593.9,3593.4,0.001]
[1753417173300,1.03636926,3593.9,3593.4,0.001]
[1753417173504,3.47169255,3593.9,3593.4,0.001]
[1753417173701,1.1842,3593.9,3593.4,0.001]
[1753417174691,0.6892,3593.9,3593.7,2.78262785]
[1753417174891,0.6892,3593.9,3593.6,2.78270739]
[1753417175208,0.6892,3593.9,3593.5,2.78278809]
[1753417175509,0.6892,3593.9,3593.4,0.001]
[1753417175705,4.40819255,3593.9,3593.4,0.001]
[1753417175905,5.2515,3593.9,3593.4,0.001]
[1753417176070,9.00994255,3593.9,3593.4,0.001]
[1753417177402,8.56844255,3593.9,3593.4,0.001]
[1753417177608,9.00994255,3593.9,3593.4,0.001]
[1753417180209,1.47095,3593.9,3593.4,0.001]
[1753417180412,0.495,3594.3,3593.5,2.7827527]
[1753417180705,2.78241825,3594.0,3593.4,0.001]
[1753417181208,0.55,3594.1,3593.4,0.001]
[1753417181571,0.55,3594.1,3593.4,2.78382442]
[1753417181768,3.33249255,3593.9,3593.4,0.001]
[1753417181968,4.03763204,3593.9,3593.4,0.001]
[1753417182405,4.53263204,3593.9,3593.4,0.001]
[1753417182606,4.97413204,3593.9,3593.4,0.001]
[1753417183579,9.40119458,3593.9,3593.4,0.001]
[1753417184021,13.90919458,3593.9,3593.4,0.001]
[1753417184885,13.31133204,3593.9,3593.4,0.001]
[1753417185086,12.86983204,3593.9,3593.4,0.001]
[1753417185496,7.03763204,3593.9,3593.4,0.001]
[1753417185698,7.19,3594.6,3593.6,0.7616]
[1753417185911,0.59815425,3594.5,3593.8,1.04342569]
[1753417186111,0.002,3595.1,3594.4,0.7616]
[1753417186296,0.002,3595.1,3594.5,5.54942028]
[1753417186506,0.002,3595.1,3594.5,5.3824]
[1753417186712,0.002,3595.1,3594.5,8.16440978]
[1753417186888,2.7836231,3595.1,3594.4,8.05070497]
[1753417187088,2.7836231,3595.1,3594.5,2.78202606]
[1753417187303,0.002,3595.1,3594.5,2.78202606]
[1753417187487,0.002,3595.1,3594.4,5.2686]
[1753417187488,0.002,3595.1,3594.4,0.7616]
[1753417187712,0.002,3595.1,3594.4,5.2686]
[1753417187888,0.002,3595.1,3594.5,2.78202809]
[1753417188095,0.552,3595.1,3594.5,2.78202809]
[1753417188320,3.33357588,3595.1,3594.4,8.05069114]
[1753417188521,0.002,3595.1,3594.5,0.90892028]
[1753417188720,0.002,3595.1,3595.0,3.56494116]
[1753417188925,0.002,3595.1,3595.0,0.7833]
[1753417189123,0.002,3595.1,3595.0,6.1704]
[1753417189743,0.002,3595.1,3595.0,4.71844668]
[1753417189929,0.002,3595.1,3595.0,8.95204116]
[1753417192852,1e-08,3595.1,3595.0,8.95204116]
[1753417193752,1e-08,3595.1,3595.0,8.95104116]
[1753417195358,1e-08,3595.1,3595.0,8.95004116]
[1753417195534,1e-08,3595.1,3595.0,11.95004116]
[1753417196653,1e-08,3595.1,3595.0,12.08924116]
[1753417197077,1e-08,3595.1,3595.0,7.58524116]
[1753417197247,1e-08,3595.1,3595.0,12.08924116]
[1753417197575,1e-08,3595.1,3595.0,5.4265]
[1753417197755,1e-08,3595.1,3595.0,8.20814116]
[1753417198078,1e-08,3595.1,3595.0,5.4255]
[1753417199093,1e-08,3595.1,3595.0,4.503]
[1753417199306,2.7815638,3595.1,3595.0,4.503]
[1753417199462,4.81778244,3595.1,3595.0,4.503]
[1753417199794,4.95698244,3595.1,3595.0,4.503]
[1753417200094,0.55,3595.0,3594.1,0.001]
[1753417200278,2.78216686,3594.4,3594.2,4.503]
[1753417200472,0.4859,3594.4,3594.2,4.503]
[1753417200670,0.4301,3594.7,3594.2,4.503]
[1753417200872,0.1392,3595.0,3594.6,2.78194728]
[1753417201070,2.78166182,3595.0,3594.7,4.503]
[1753417201380,1e-08,3595.1,3595.0,2.78164116]
[1753417201587,1e-08,3595.1,3595.0,2.80945757]
[1753417201764,1e-08,3595.1,3595.0,3.69055757]
[1753417202171,1e-08,3595.1,3595.0,3.66274116]
[1753417202860,1e-08,3595.1,3595.0,3.69055757]
[1753417203260,1e-08,3595.1,3595.0,7.28364116]
[1753417204485,1e-08,3595.1,3595.0,7.70274116]
[1753417204687,1e-08,3595.1,3595.0,8.16474116]
[1753417206133,1e-08,3595.1,3595.0,11.16474116]
[1753417206328,0.1812,3595.9,3595.8,3.5544223]
[1753417206329,1e-08,3595.9,3595.8,3.5544223]
[1753417206547,2.81865298,3598.9,3596.5,3.58468102]
[1753417206548,1.3518,3597.9,3596.5,3.58468102]
[1753417206690,0.1392,3597.5,3596.5,11.11348583]
[1753417206888,0.8659,3597.9,3596.5,11.96678102]
[1753417207738,0.8659,3597.9,3597.8,2.77947634]
[1753417207894,0.8659,3597.9,3597.8,7.28047634]
[1753417207895,0.04,3597.9,3597.8,7.28047634]
[1753417208316,0.04,3597.9,3597.8,7.74247634]
[1753417208515,0.04,3597.9,3597.8,8.16157634]
[1753417208920,1e-08,3597.9,3597.8,11.16157634]
[1753417209236,1e-08,3598.2,3598.1,2.7792446]
[1753417209410,1e-08,3598.2,3598.1,7.30703704]
[1753417209618,1e-08,3598.2,3598.1,8.1603446]
[1753417209930,1e-08,3598.2,3598.1,7.2792446]
[1753417210503,1e-08,3598.2,3598.1,8.1603446]
[1753417210731,1e-08,3598.2,3597.8,0.8042]
[1753417211034,1e-08,3598.2,3598.1,5.7792446]
[1753417211260,1e-08,3598.2,3597.8,0.8042]
[1753417211261,0.48590001,3598.2,3597.8,0.8042]
[1753417211545,0.48590001,3598.2,3597.5,7.232]
[1753417211546,0.55,3598.0,3597.5,7.232]
[1753417211726,0.6325,3597.9,3597.6,4.499]
[1753417211895,0.55000001,3598.2,3597.6,4.499]
[1753417212834,0.4859,3598.1,3597.7,4.498]
[1753417213040,3.75928387,3598.2,3597.7,4.498]
[1753417213198,0.55,3597.9,3597.8,4.498]
[1753417213397,1.466,3597.9,3597.8,4.498]
[1753417213594,4.24539909,3597.9,3597.8,4.498]
[1753417213797,0.55,3597.5,3596.3,0.8102]
[1753417214048,0.55,3597.5,3596.7,2.78032191]
[1753417214049,0.916,3597.4,3596.7,2.78032191]
[1753417214210,0.916,3597.4,3596.8,4.498]
[1753417214396,0.55,3597.3,3596.8,4.498]
[1753417214612,0.4859,3597.2,3596.8,4.498]
[1753417214805,0.916,3597.1,3596.1,7.27]
[1753417215005,1.3159,3597.0,3596.3,2.7806317]
[1753417215248,1.3159,3597.0,3596.2,4.498]
[1753417215449,0.55,3596.8,3596.2,4.498]
[1753417215741,2.78043094,3596.6,3596.2,4.498]
[1753417216107,3.33029637,3596.8,3596.2,4.498]
[1753417216108,0.916,3596.5,3596.2,4.498]
[1753417216319,0.55,3596.8,3596.3,4.497]
[1753417216320,0.4859,3596.8,3596.3,4.497]
[1753417216521,0.55,3596.9,3596.3,4.497]
[1753417216860,0.1392,3596.8,3596.4,2.7805448]
[1753417217164,0.7659,3597.0,3596.5,0.02780481]
[1753417217345,0.4859,3597.2,3596.6,7.41653768]
[1753417217346,0.1392,3597.1,3596.6,7.41653768]
[1753417217514,0.1392,3597.1,3596.7,4.497]
[1753417217707,0.1392,3597.1,3596.7,7.27731339]
[1753417217913,0.5961,3597.1,3596.7,4.497]
[1753417219236,0.5961,3597.1,3596.7,7.27728634]
[1753417219435,0.5961,3597.1,3596.7,4.497]
[1753417219635,0.5961,3597.1,3596.7,7.27730551]
[1753417219836,0.5961,3597.1,3596.9,2.78015373]
[1753417219837,0.1392,3597.1,3596.9,2.78015373]
[1753417220037,0.002,3597.9,3597.1,2.78001723]
[1753417220038,0.4589,3597.9,3597.1,2.78001723]
[1753417220225,0.1392,3597.7,3597.2,4.6352]
[1753417220441,0.4569,3597.6,3597.2,0.1392]
[1753417220615,0.9138,3597.5,3597.3,4.496]
[1753417220814,0.1392,3597.7,3597.3,4.496]
[1753417221410,0.002,3597.9,3597.3,4.496]
[1753417221615,0.002,3597.9,3597.5,2.77970813]
[1753417221814,0.002,3597.9,3597.8,0.1392]
[1753417222054,0.002,3597.9,3597.8,2.91867634]
[1753417222915,0.002,3597.9,3597.8,2.9464711]
[1753417223315,0.002,3597.9,3597.8,3.79107634]
[1753417224244,0.4589,3597.9,3597.8,4.495]
[1753417224557,3.23829909,3597.9,3597.8,4.495]
[1753417224848,0.9158,3597.9,3596.7,0.7578]
[1753417225050,2.77986267,3597.3,3596.8,4.6342]
[1753417225266,0.5961,3597.3,3596.8,4.6342]
[1753417225413,3.32963024,3597.7,3596.3,0.7578]
[1753417225414,2.78017181,3596.9,3596.3,0.7578]
[1753417225613,0.4569,3596.8,3596.1,0.04]
[1753417225919,0.1392,3596.6,3596.2,7.2756797]
[1753417226151,0.1392,3596.6,3596.2,4.495]
[1753417226455,0.4569,3596.5,3596.2,4.495]
[1753417227028,0.4569,3597.1,3596.2,7.27569371]
[1753417227029,2.7801843,3596.9,3596.2,7.27569371]
[1753417227356,0.1392,3596.8,3596.2,7.27570413]
[1753417227515,0.1392,3596.8,3596.2,4.495]
[1753417227516,1.0069,3596.7,3596.2,4.495]
[1753417227715,0.5961,3596.6,3596.2,4.495]
[1753417227925,0.1392,3596.6,3596.2,4.495]
[1753417228127,0.1392,3596.6,3596.3,2.78057741]
[1753417228338,0.4569,3597.0,3596.4,2.78055463]
[1753417228537,0.1392,3596.9,3596.5,4.494]
[1753417228738,2.77986398,3597.3,3596.5,4.494]
[1753417228739,7.9529,3597.6,3596.6,2.78033044]
[1753417229049,0.1392,3597.3,3596.8,2.91942227]
[1753417229251,1.019,3597.5,3596.9,4.494]
[1753417229450,2.91899666,3597.4,3596.9,4.494]
[1753417229657,0.002,3597.9,3596.9,4.494]
[1753417229856,0.002,3597.9,3597.0,0.48110094]
[1753417230019,0.002,3597.9,3597.7,2.91873042]
[1753417230352,0.002,3597.9,3597.8,7.27347634]
[1753417231119,0.002,3597.9,3597.8,8.14587634]
[1753417231616,0.002,3597.9,3597.8,7.27347634]
[1753417231953,0.002,3597.9,3597.8,8.14587634]
[1753417232318,0.002,3597.9,3597.8,7.27347634]
[1753417232854,0.002,3597.9,3597.8,4.494]
[1753417233054,0.002,3597.9,3597.8,7.27347634]
[1753417233220,0.002,3597.9,3597.8,4.494]
[1753417233552,0.002,3597.9,3597.7,0.1392]
[1753417233756,0.002,3597.9,3595.9,2.78093457]
[1753417233757,2.7797854,3597.4,3596.4,0.8017]
[1753417233921,2.7797854,3597.4,3596.0,0.8724]
[1753417233922,1.3808,3597.2,3596.8,0.1392]
[1753417234121,0.1392,3597.0,3596.9,4.493]
[1753417234325,0.1392,3597.2,3596.9,4.493]
[1753417234651,0.1392,3597.2,3596.9,7.27317024]
[1753417234852,2.78145219,3597.9,3597.0,0.02780094]
[1753417235056,0.1392,3597.8,3597.3,0.1392]
[1753417235353,0.002,3597.9,3597.5,2.77970813]
[1753417235551,0.002,3597.9,3597.6,4.6312]
[1753417236128,0.002,3597.9,3597.6,7.41080217]
[1753417236331,0.002,3597.9,3597.7,0.7648]
[1753417236644,0.002,3597.9,3597.8,2.9464711]
[1753417236838,0.002,3597.9,3597.8,3.8188711]
[1753417237053,0.002,3597.9,3597.8,3.3997711]
[1753417237226,0.002,3597.9,3597.8,0.1392]
[1753417237428,0.002,3597.9,3597.8,4.6312]
[1753417238461,0.002,3597.9,3597.8,7.41067634]
[1753417238752,0.002,3597.9,3597.8,4.6312]
[1753417239130,0.002,3597.9,3597.8,7.41067634]
[1753417241732,0.002,3597.9,3597.2,0.7991]
[1753417241931,0.4569,3597.8,3597.6,0.1392]
[1753417242133,0.4589,3597.9,3597.7,7.2704861]
[1753417242134,0.002,3597.9,3597.7,7.2704861]
[1753417242334,0.002,3597.9,3597.8,7.2982711]
[1753417242556,0.002,3597.9,3597.8,7.40967634]
[1753417242724,0.002,3597.9,3597.8,4.6302]
[1753417243823,1.6925,3597.9,3596.8,0.7928]
[1753417244037,0.1392,3597.7,3597.2,2.91913899]
[1753417244241,0.1392,3597.7,3597.3,4.49]
[1753417244437,0.4569,3597.6,3597.3,4.49]
[1753417244864,3.3297854,3597.4,3597.3,4.49]
[1753417245161,3.3297854,3597.4,3596.8,0.001]
[1753417245162,7.10687181,3596.9,3596.8,0.001]
[1753417245326,4.10741297,3596.2,3595.4,0.1392]
[1753417245526,7.24661297,3596.2,3595.5,4.49]
[1753417245723,3.3307903,3596.1,3595.5,4.49]
[1753417245946,6.3307903,3596.1,3595.0,0.001]
[1753417246159,4.13488642,3595.2,3595.0,0.001]
[1753417246359,7.13488642,3595.2,3595.0,0.001]
[1753417246561,7.73098642,3595.2,3595.0,0.001]
[1753417246766,8.18788642,3595.2,3595.0,0.001]
[1753417247264,9.28480989,3595.2,3595.0,0.001]
[1753417247827,0.9426,3595.2,3595.0,0.001]
[1753417248159,0.638,3595.2,3595.0,0.001]
[1753417248373,0.1392,3595.3,3595.2,2.78148642]
[1753417248528,7.229,3597.2,3595.7,2.78107619]
[1753417248529,1.3226,3596.2,3595.7,2.78107619]
[1753417248732,0.8238,3596.2,3595.8,4.49]
[1753417249064,0.9454,3596.1,3595.9,4.49]
[1753417249266,3.33095368,3595.9,3595.7,4.49]
[1753417249563,0.9454,3595.8,3595.7,4.49]
[1753417249768,1.6346,3595.8,3595.7,4.49]
[1753417249934,1.188,3595.8,3595.2,0.1392]
[1753417250134,0.6892,3595.8,3595.6,4.49]
[1753417250635,1.188,3595.8,3595.6,4.49]
[1753417251564,0.55,3596.0,3595.7,2.78109964]
[1753417251773,3.7837,3595.1,3594.2,0.001]
[1753417251937,7.1158829,3594.3,3594.2,0.001]
[1753417252136,6.3322603,3594.2,3593.6,4.49]
[1753417252351,8.26745689,3594.2,3593.5,0.001]
[1753417252551,8.26745689,3594.2,3593.6,4.49]
[1753417252971,8.26745689,3594.2,3593.5,0.001]
[1753417253283,7.11679255,3593.9,3593.8,1e-08]
[1753417253664,8.06219255,3593.9,3593.8,1e-08]
[1753417253969,9.24563078,3593.9,3593.8,1e-08]
[1753417255668,6.46313823,3593.9,3593.8,1e-08]
[1753417255998,6.46313823,3593.9,3593.8,4.49100001]
[1753417255999,0.7843,3593.9,3593.8,4.49100001]
[1753417256286,0.55,3594.2,3593.8,4.49100001]
[1753417256487,0.4988,3594.2,3593.8,7.27355283]
[1753417256866,0.4988,3594.2,3593.8,7.27355297]
[1753417257188,0.55,3594.0,3593.9,4.492]
[1753417257480,1.0488,3594.0,3593.9,4.492]
[1753417257885,0.55,3594.1,3593.9,4.492]
[1753417258376,0.55,3594.1,3594.0,4.491]
[1753417258759,7.19,3594.5,3594.0,4.491]
[1753417258964,7.19,3594.5,3593.8,1e-08]
[1753417258965,1.2521,3594.9,3594.1,4.491]
[1753417259161,1.4954,3594.8,3593.8,1e-08]
[1753417259368,0.55,3594.4,3594.2,4.491]
[1753417259671,0.55,3593.9,3593.8,1e-08]
[1753417259887,0.88322817,3593.9,3593.8,1e-08]
[1753417260085,0.55,3593.9,3593.8,4.49100001]
[1753417260382,3.33212987,3594.4,3593.8,4.49100001]
[1753417260580,17.17878499,3595.5,3593.8,4.49100001]
[1753417260581,0.4988,3595.1,3593.8,4.49100001]
[1753417260784,7.19,3595.5,3594.2,2.7822603]
[1753417260985,2.78125226,3595.6,3594.3,0.92122182]
[1753417261156,0.8077,3595.9,3594.8,2.7817853]
[1753417261362,2.78111663,3595.7,3595.0,2.78158285]
[1753417261562,0.02802937,3595.6,3595.1,4.491]
[1753417261778,0.1392,3595.0,3594.5,0.1392]
[1753417261995,0.1392,3595.0,3594.6,4.491]
[1753417262492,0.1392,3595.0,3594.6,7.27293909]
[1753417262793,3.33179592,3594.8,3594.7,4.491]
[1753417262999,5.20584851,3594.8,3594.7,4.491]
[1753417263194,2.42405259,3594.8,3593.8,0.13920001]
[1753417263396,0.6892,3594.1,3593.9,4.491]
[1753417263601,0.6892,3594.1,3593.2,3.56112427]
[1753417263602,6.33318953,3593.0,3592.9,0.001]
[1753417263898,6.33318953,3593.0,3590.5,7.235]
[1753417263899,2.784507,3591.3,3591.2,0.1392]
[1753417264098,2.784507,3591.3,3591.2,4.52]
[1753417264499,2.95167748,3591.4,3591.2,4.52]
[1753417264800,1.4954,3591.3,3591.2,4.52]
[1753417265001,3.33458453,3591.2,3591.1,1e-08]
[1753417265202,5.2556139,3591.2,3591.1,1e-08]
[1753417265498,6.35962599,3591.2,3591.1,1e-08]
[1753417265698,6.33159662,3591.2,3591.1,1e-08]
[1753417266201,9.33159662,3591.2,3591.1,1e-08]
[1753417266618,13.82359662,3591.2,3591.1,1e-08]
[1753417267909,9.33159662,3591.2,3591.1,1e-08]
[1753417268209,3.33536014,3590.2,3590.1,0.04]
[1753417268377,0.55,3590.3,3590.1,0.04]
[1753417268690,0.4988,3590.2,3590.1,0.04]
[1753417268884,0.7759,3590.4,3590.1,0.04]
[1753417269121,0.02802937,3590.3,3590.1,0.04]
[1753417269422,0.4988,3590.3,3590.1,0.04]
[1753417269620,0.55,3590.7,3590.4,2.78518862]
[1753417269778,0.55,3590.7,3590.1,0.04]
[1753417269978,0.55,3590.7,3590.1,2.82543394]
[1753417270205,0.55,3590.7,3590.1,0.04]
[1753417270410,0.52682937,3590.6,3590.1,0.04]
[1753417270785,0.4988,3590.5,3590.1,0.04]
[1753417270987,0.4988,3590.6,3590.1,0.04]
[1753417271202,7.09566014,3590.2,3590.1,0.04]
[1753417271386,3.33551532,3590.0,3589.9,0.001]
[1753417271573,6.36354469,3590.0,3589.9,0.001]
[1753417271796,7.28091532,3590.0,3589.9,0.001]
[1753417273512,4.4954,3590.0,3589.9,0.001]
[1753417273714,3.55,3590.0,3589.9,0.001]
[1753417273911,0.55,3590.0,3589.9,0.001]
[1753417274208,3.83431532,3590.0,3589.9,0.001]
[1753417274396,5.04694606,3590.0,3589.9,0.001]
[1753417274829,5.30362646,3590.0,3589.9,0.001]
[1753417275012,8.01891669,3590.0,3589.9,0.001]
[1753417275312,8.27566028,3590.0,3589.9,0.001]
[1753417275677,0.4988,3590.5,3589.9,0.001]
[1753417275878,2.78551532,3590.0,3589.9,0.001]
[1753417276103,3.83431532,3590.0,3589.9,0.001]
[1753417276406,4.30894469,3590.0,3589.9,0.001]
[1753417277579,4.56550254,3590.0,3589.9,0.001]
[1753417277780,8.57256527,3590.0,3589.9,0.001]
[1753417277979,8.31600742,3590.0,3589.9,0.001]
[1753417278275,8.45520742,3590.0,3589.9,0.001]
[1753417278927,8.71174065,3590.0,3589.9,0.001]
[1753417280042,8.71183049,3590.0,3589.9,0.001]
[1753417281827,4.98091517,3590.0,3589.9,0.001]
[1753417282020,7.76643049,3590.0,3589.9,0.001]
[1753417282342,4.98091517,3590.0,3589.9,0.001]
[1753417282536,7.76643049,3590.0,3589.9,0.001]
[1753417283035,0.1392,3590.0,3589.9,0.001]
[1753417283349,0.1392,3590.0,3589.9,2.78659291]
[1753417283551,0.1392,3590.0,3589.9,0.001]
[1753417284271,0.25698159,3590.6,3590.2,2.78535616]
[1753417284413,2.78490717,3590.8,3590.2,4.495]
[1753417284613,0.1392,3590.4,3590.2,4.495]
[1753417284813,0.1392,3590.4,3590.3,2.78528256]
[1753417285027,0.1392,3590.4,3590.2,4.495]
[1753417285814,0.1392,3590.4,3590.0,2.78549802]
[1753417285815,2.92446071,3590.4,3590.3,4.495]
[1753417286020,3.47446071,3590.4,3590.3,4.495]
[1753417286213,3.33551532,3590.0,3589.9,4.496]
[1753417286450,3.93641532,3590.0,3589.9,4.496]
[1753417286762,3.93641532,3590.0,3589.9,0.001]
[1753417286963,5.16550517,3590.0,3589.9,4.496]
[1753417287141,5.1374758,3590.0,3589.9,4.496]
[1753417287344,5.1374758,3590.0,3589.9,0.001]
[1753417287516,3.33613618,3589.2,3589.1,0.041]
[1753417287716,4.19718363,3589.2,3589.1,0.041]
[1753417288072,7.63085426,3589.2,3589.1,0.041]
[1753417288221,8.07575426,3589.2,3589.1,0.041]
[1753417290575,3.33667967,3588.5,3588.4,0.001]
[1753417290784,3.67034764,3588.5,3588.4,0.001]
[1753417291097,4.27124764,3588.5,3588.4,0.001]
[1753417291398,5.52077701,3588.5,3588.4,0.001]
[1753417292941,8.52077701,3588.5,3588.4,0.001]
[1753417293250,9.08872478,3588.5,3588.4,0.001]
[1753417293976,5.08054511,3588.5,3588.4,0.001]
[1753417294178,4.28517714,3588.5,3588.4,0.001]
[1753417295157,0.73517714,3588.5,3588.4,2.78775732]
[1753417295359,0.69381808,3589.2,3588.4,0.8621]
[1753417295360,0.59597714,3589.1,3588.4,0.8621]
[1753417295564,2.78564996,3589.9,3588.4,0.8621]
[1753417295565,0.59597714,3589.0,3588.9,2.78636908]
[1753417295764,0.59597714,3589.0,3588.9,3.64746908]
[1753417296078,0.59597714,3589.0,3588.9,4.496]
[1753417296275,0.73517714,3589.0,3588.9,4.496]
[1753417296580,3.33637205,3588.9,3588.8,4.496]
[1753417296877,0.55,3588.7,3588.6,4.495]
[1753417297079,1.14597714,3588.7,3588.6,4.495]
[1753417297378,3.33667967,3588.5,3588.4,0.001]
[1753417297549,3.96068618,3588.5,3588.4,0.001]
[1753417297882,6.33691265,3588.2,3588.1,0.04]
[1753417298247,7.38271265,3588.2,3588.1,0.04]
[1753417298447,7.97868979,3588.2,3588.1,0.04]
[1753417298657,3.337068,3588.0,3587.9,0.001]
[1753417298873,6.50429737,3588.0,3587.9,0.001]
[1753417299062,7.382868,3588.0,3587.9,0.001]
[1753417299860,6.476268,3588.0,3587.9,0.001]
[1753417300244,6.937968,3588.0,3587.9,0.001]
[1753417300486,8.46301111,3588.0,3587.9,0.001]
[1753417301557,8.01811111,3588.0,3587.9,0.001]
[1753417301758,4.76934311,3588.0,3587.9,0.001]
[1753417302077,3.1392,3588.0,3587.9,0.001]
[1753417302278,6.476268,3588.0,3587.9,0.001]
[1753417302440,3.6892,3588.0,3587.9,0.001]
[1753417302639,3.71722937,3588.0,3587.9,0.001]
[1753417302891,0.1392,3588.0,3587.9,3.64924568]
[1753417303105,0.02802937,3588.6,3587.9,0.001]
[1753417303396,0.1392,3588.0,3587.9,4.497]
[1753417303735,0.1392,3588.0,3587.9,4.496]
[1753417303736,0.6892,3588.0,3587.9,4.496]
[1753417303846,3.476268,3588.0,3587.9,0.001]
[1753417304185,4.59231562,3588.0,3587.9,0.001]
[1753417304882,5.00918625,3588.0,3587.9,0.001]
[1753417305078,5.03721562,3588.0,3587.9,0.001]
[1753417305484,7.56428625,3588.0,3587.9,0.001]
[1753417305687,3.1392,3588.0,3587.9,0.001]
[1753417306058,3.6892,3588.0,3587.9,0.001]
[1753417306357,7.382868,3588.0,3587.9,0.001]
[1753417307995,2.78768956,3587.2,3586.9,0.001]
[1753417308299,3.1392,3587.2,3587.0,4.495]
[1753417308686,0.1392,3587.2,3587.1,0.4611]
[1753417308910,2.7869324,3588.2,3587.2,2.78768956]
[1753417309226,0.1392,3588.1,3587.3,0.8852]
[1753417309405,0.1392,3588.1,3587.8,2.78721581]
[1753417309607,0.1392,3588.1,3587.6,2.78736159]
[1753417309608,0.1392,3588.1,3587.9,4.495]
[1753417309785,0.787,3588.6,3587.9,4.495]
[1753417309786,2.787068,3588.0,3587.9,4.495]
[1753417309989,2.926268,3588.0,3587.9,4.495]
[1753417310186,0.1392,3588.0,3587.3,0.4651]
[1753417310408,0.4745,3588.8,3587.4,4.9151]
[1753417310632,2.78677469,3588.4,3587.5,1.0244]
[1753417310842,0.1392,3588.1,3587.5,1.0244]
[1753417311052,0.1392,3588.1,3587.7,2.78727701]
[1753417311334,0.1392,3588.1,3588.0,2.787068]
[1753417311550,0.787,3589.1,3588.2,2.78688926]
[1753417311551,0.1392,3588.4,3588.2,2.78688926]
[1753417311689,0.1392,3588.4,3588.0,0.8021]
[1753417311690,0.1392,3588.4,3588.3,4.495]
[1753417312127,0.1392,3588.4,3588.2,0.8852]
[1753417312285,0.1392,3588.4,3588.3,4.495]
[1753417312505,0.1392,3588.4,3588.3,4.9151]
[1753417312726,2.78683499,3588.3,3587.9,0.1392]
[1753417312927,0.1392,3588.0,3587.5,0.5593]
[1753417313106,0.1392,3588.0,3587.8,4.495]
[1753417313431,2.78720551,3587.9,3587.2,3.60256564]
[1753417313594,0.02802937,3587.8,3587.3,4.495]
[1753417313931,0.1392,3587.5,3587.3,5.3802]
[1753417314915,0.1392,3587.5,3587.2,0.8149]
[1753417315114,0.1392,3587.5,3587.4,4.494]
[1753417317594,2.92665644,3587.5,3587.4,4.494]
[1753417317796,3.33761001,3587.4,3587.1,0.041]
[1753417318018,2.78768956,3587.2,3587.1,0.041]
[1753417318220,3.33768956,3587.2,3587.1,0.041]
[1753417318536,4.57618956,3587.2,3587.1,0.041]
[1753417319333,5.03451893,3587.2,3587.1,0.041]
[1753417319522,5.83065201,3587.2,3587.1,0.041]
[1753417319724,5.80262264,3587.2,3587.1,0.041]
[1753417320261,0.1392,3587.3,3587.1,0.041]
[1753417320468,0.1392,3587.3,3587.2,4.494]
[1753417320676,0.4303,3588.8,3587.2,6.17847689]
[1753417320832,1.2642,3588.9,3587.7,2.78728276]
[1753417321017,2.78683733,3588.3,3587.8,4.494]
[1753417321215,0.50252937,3588.2,3587.9,4.494]
[1753417321426,0.4745,3588.1,3587.9,4.494]
[1753417321656,0.55,3588.0,3587.9,4.494]